fUSD/lending_fUSD_20250422
["ID","MTS","AMOUNT","RATE_DAILY","PERIOD"]
[358590730,1745295048232,-534.94732,0.000483,14]
[358590731,1745295048242,-176.954828,0.000483,14]
[358590732,1745295048250,-176.954828,0.000483,14]
[358590733,1745295048260,-611.122299,0.000483,14]
[358590734,1745295048270,-611.122299,0.000483,14]
[358590735,1745295048279,-1160.348568,0.000483,106]
[358590736,1745295048289,-222.0,0.0004838,2]
[358590737,1745295048298,-211.0,0.0004838,2]
[358590738,1745295048308,-209.0,0.0004838,2]
[358590739,1745295048317,-417.35956535,0.00048409,2]
[358590740,1745295048328,-454.22149685,0.00048409,2]
[358590741,1745295048338,-2193.95171971,0.00048415,2]
[358590742,1745295048349,-2193.95171971,0.00048427,2]
[358590743,1745295048359,-333.72450283,0.00048435,2]
[358590744,1745295048369,-417.35956535,0.00048439,2]
[358590745,1745295048379,-617.11674762,0.00048441,2]
[358590746,1745295048388,-617.11674762,0.00048444,2]
[358590747,1745295048399,-617.11674762,0.00048444,2]
[358590748,1745295048410,-1505.73416239,0.00048445,10]
[358590749,1745295048420,-333.72450283,0.00048454,2]
[358590750,1745295048429,-2193.95171971,0.00048454,2]
[358590751,1745295048439,-1273.10793311,0.00048456,2]
[358590752,1745295048449,-417.35956535,0.00048465,2]
[358590753,1745295048459,-200.0,0.00048469,2]
[358590754,1745295048468,-13299.53686517,0.00048472,2]
[358590755,1745295048478,-13299.53686517,0.00048476,2]
[358590756,1745295048487,-200.0,0.0004848,2]
[358590757,1745295048496,-200.0,0.00048482,2]
[358590758,1745295048506,-2193.95171971,0.00048483,2]
[358590759,1745295048515,-333.72450283,0.00048485,2]
[358590760,1745295048524,-150.0,0.00048493,120]
[358590761,1745295048533,-792.38271452,0.00048494,2]
[358590762,1745295048543,-1273.10793311,0.00048496,2]
[358590763,1745295048552,-200.0,0.00048497,2]
[358590764,1745295048561,-333.72450283,0.00048498,2]
[358590765,1745295048571,-454.22149685,0.00048499,2]
[358590766,1745295048579,-417.35956535,0.00048503,2]
[358590767,1745295048588,-200.0,0.0004851,2]
[358590768,1745295048598,-200.0,0.00048512,2]
[358590769,1745295048607,-417.35956535,0.00048521,2]
[358590770,1745295048616,-13299.53686517,0.00048521,2]
[358590771,1745295048625,-454.22149685,0.00048524,2]
[358590772,1745295048634,-2193.95171971,0.00048525,2]
[358590773,1745295048643,-792.38271452,0.00048532,2]
[358590774,1745295048654,-2193.95171971,0.00048533,2]
[358590775,1745295048663,-454.22149685,0.00048537,2]
[358590776,1745295048672,-333.72450283,0.0004854,2]
[358590777,1745295048681,-1273.10793311,0.00048544,2]
[358590778,1745295048691,-792.38271452,0.00048546,2]
[358590779,1745295048700,-792.38271452,0.00048546,2]
[358590780,1745295048709,-13299.53686517,0.00048559,2]
[358590781,1745295048718,-617.11674762,0.00048569,2]
[358590782,1745295048727,-13299.53686517,0.00048571,2]
[358590783,1745295048735,-333.72450283,0.00048574,2]
[358590784,1745295048745,-200.0,0.00048576,2]
[358590785,1745295048753,-1273.10793311,0.00048592,2]
[358590786,1745295048762,-290.05,0.000486,45]
[358590787,1745295048771,-290.05,0.000486,45]
[358590788,1745295048781,-290.05,0.000486,45]
[358590789,1745295048790,-290.05,0.000486,45]
[358590790,1745295048799,-290.05,0.000486,45]
[358590791,1745295048808,-290.05,0.000486,45]
[358590792,1745295048817,-290.05,0.000486,45]
[358590793,1745295048826,-290.05,0.000486,45]
[358590794,1745295048836,-290.05,0.000486,45]
[358590795,1745295048845,-290.05,0.000486,45]
[358590796,1745295048854,-290.05,0.000486,45]
[358590797,1745295048863,-290.05,0.000486,45]
[358590798,1745295048873,-617.11674762,0.00048601,2]
[358590799,1745295048883,-454.22149685,0.00048601,2]
[358590800,1745295048892,-227.11074843,0.00048603,2]
[358590801,1745295048902,-417.35956535,0.00048613,2]
[358590802,1745295048915,-792.38271452,0.00048616,2]
[358590803,1745295048924,-1273.10793311,0.00048619,2]
[358590804,1745295048934,-200.0,0.00048633,2]
[358590805,1745295048943,-13299.53686517,0.00048637,2]
[358590806,1745295048954,-792.38271452,0.00048645,2]
[358590807,1745295048963,-227.11074843,0.00048649,2]
[358590808,1745295048972,-13299.53686517,0.0004865,2]
[358590809,1745295048982,-617.11674762,0.00048653,2]
[358590810,1745295048991,-617.11674762,0.00048654,2]
[358590811,1745295049002,-792.38271452,0.00048657,2]
[358590812,1745295049011,-1273.10793311,0.00048658,2]
[358590813,1745295049021,-617.11674762,0.00048661,2]
[358590814,1745295049031,-2193.95171971,0.00048667,2]
[358590815,1745295049041,-333.72450283,0.00048668,2]
[358590816,1745295049051,-417.35956535,0.00048669,2]
[358590817,1745295049060,-454.22149685,0.0004867,2]
[358590818,1745295049070,-1273.10793311,0.00048672,2]
[358590819,1745295049079,-2193.95171971,0.00048672,2]
[358590820,1745295049089,-13299.53686517,0.00048673,2]
[358590821,1745295049099,-1273.10793311,0.00048678,2]
[358590822,1745295049111,-200.0,0.00048681,2]
[358590823,1745295049120,-417.35956535,0.00048685,2]
[358590824,1745295049130,-792.38271452,0.00048687,2]
[358590825,1745295049140,-454.22149685,0.00048689,2]
[358590826,1745295049150,-333.72450283,0.00048696,2]
[358590827,1745295049160,-200.0,0.000487,76]
[358590828,1745295049170,-200.0,0.0004875,7]
[358590829,1745295049179,-1000.0,0.0004876,40]
[358590830,1745295049189,-1000.0,0.0004876,40]
[358590831,1745295049199,-1000.0,0.0004876,40]
[358590832,1745295049208,-1000.0,0.0004876,40]
[358590833,1745295049218,-1000.0,0.0004876,40]
[358590834,1745295049228,-1000.0,0.0004876,40]
[358590835,1745295049238,-1000.0,0.0004876,40]
[358590836,1745295049247,-1000.0,0.0004876,40]
[358590837,1745295049256,-1000.0,0.0004876,40]
[358590838,1745295049266,-1000.0,0.0004876,40]
[358590839,1745295049276,-1000.0,0.0004876,40]
[358590840,1745295049285,-1000.0,0.0004876,40]
[358590841,1745295049294,-1000.0,0.0004876,40]
[358590842,1745295049303,-1000.0,0.0004876,40]
[358590843,1745295049313,-1000.0,0.0004876,40]
[358590844,1745295049322,-1000.0,0.0004876,40]
[358590845,1745295049331,-1000.0,0.0004876,40]
[358590846,1745295049340,-1000.0,0.0004876,40]
[358590847,1745295049350,-1000.0,0.0004876,40]
[358590848,1745295049359,-1000.0,0.0004876,40]
[358590849,1745295049369,-903.73,0.0004876,40]
[358590850,1745295049379,-151.0,0.0004876,14]
[358590851,1745295049388,-158.16418,0.0004876,14]
[358590852,1745295049398,-151.0,0.0004876,14]
[358590853,1745295049407,-151.0,0.0004876,14]
[358590854,1745295049416,-151.0,0.0004876,14]
[358590855,1745295049426,-151.0,0.0004876,14]
[358590856,1745295049435,-151.0,0.0004876,14]
[358590857,1745295049444,-151.0,0.0004876,14]
[358590858,1745295049454,-151.0,0.0004876,14]
[358590859,1745295049463,-200.0,0.000488,120]
[358590860,1745295049473,-151.0,0.0004889,14]
[358590861,1745295049483,-151.0,0.0004889,14]
[358590862,1745295049492,-79747.55929428,0.000489,15]
[358590863,1745295049501,-950.0,0.00049,2]
[358590864,1745295049510,-168.539986,0.00049055,120]
[358590865,1745295049519,-337.68,0.000491,2]
[358590866,1745295049528,-1436.06,0.000491,2]
[358590867,1745295049537,-28393.81,0.000491,2]
[358590868,1745295049546,-916.0,0.00049104,2]
[358590869,1745295049556,-795.0,0.00049104,2]
[358590870,1745295049566,-909.0,0.00049104,2]
[358590871,1745295049575,-547.0,0.00049104,2]
[358590872,1745295049584,-577.0,0.00049104,2]
[358590873,1745295049593,-2039.11,0.00049151,2]
[358590874,1745295049603,-200.0,0.00049237,7]
[358590875,1745295049612,-183.35067849,0.00049288,120]
[358590876,1745295049623,-36933.79,0.000493,30]
[358590877,1745295049632,-158.7675971,0.00049315,2]
[358590878,1745295049642,-3005.98,0.00049315,120]
[358590879,1745295049651,-152.0,0.00049356,9]
[358590880,1745295049661,-37929.47,0.000494,60]
[358590881,1745295049670,-356.11921378,0.00049491,14]
[358590882,1745295049679,-3000.0,0.000495,2]
[358590883,1745295049688,-153.0,0.00049589,60]
[358590884,1745295049698,-153.0,0.00049589,60]
[358590885,1745295049707,-153.0,0.00049589,60]
[358590886,1745295049716,-153.0,0.00049589,60]
[358590887,1745295049725,-153.0,0.00049589,60]
[358590888,1745295049734,-153.0,0.00049589,60]
[358590889,1745295049743,-153.0,0.00049589,60]
[358590890,1745295049753,-153.0,0.00049589,60]
[358590891,1745295049762,-153.0,0.00049589,60]
[358590892,1745295049772,-153.0,0.00049589,60]
[358590893,1745295049781,-153.0,0.00049589,60]
[358590894,1745295049790,-153.0,0.00049589,60]
[358590895,1745295049799,-153.0,0.00049589,60]
[358590896,1745295049807,-153.0,0.00049589,60]
[358590897,1745295049816,-153.0,0.00049589,60]
[358590898,1745295049825,-153.0,0.00049589,60]
[358590899,1745295049834,-153.0,0.00049589,60]
[358590900,1745295049843,-150.0,0.00049613,120]
[358590901,1745295049852,-200.0,0.000497,79]
[358590902,1745295049861,-222.0,0.000497,2]
[358590903,1745295049870,-211.0,0.000497,2]
[358590904,1745295049879,-209.0,0.000497,2]
[358590905,1745295049888,-183.35067849,0.00049808,120]
[358590906,1745295049897,-3356.12928232,0.0004988,30]
[358590907,1745295049909,-2139.79396937,0.000499,120]
[358590908,1745295049920,-165.50385948,0.000499,120]
[358590909,1745295049930,-165.50385946,0.000499,120]
[358590910,1745295049940,-165.50385946,0.000499,120]
[358590911,1745295049950,-165.50385946,0.000499,120]
[358590912,1745295049959,-165.50385946,0.000499,120]
[358590913,1745295049968,-42858.96124326,0.0004999,2]
[358590914,1745295049977,-192.64,0.00049997,2]
[358590915,1745295049987,-1006.82449948,0.0005,2]
[358590916,1745295049997,-2642.79857879,0.0005,5]
[358590917,1745295050007,-768.85471324,0.0005,7]
[358590918,1745295050017,-500.0,0.0005,2]
[358590919,1745295050026,-1000.0,0.0005,120]
[358590920,1745295050036,-1136.0,0.0005,120]
[358590921,1745295050046,-195.12,0.0005,2]
[358590922,1745295050056,-500.0,0.0005,120]
[358590923,1745295050067,-175.98,0.0005,2]
[358590924,1745295050076,-500.0,0.0005,120]
[358590925,1745295050085,-1172.78042588,0.0005,120]
[358590926,1745295050095,-10000.0,0.0005,30]
[358590927,1745295050104,-2773.0,0.0005,30]
[358590928,1745295050114,-151.0,0.0005,120]
[358590929,1745295050124,-151.0,0.0005,120]
[358590930,1745295050134,-390.0,0.0005,120]
[358590931,1745295050143,-151.0,0.0005,120]
[358590932,1745295050154,-4658.54,0.000501,7]
[358590933,1745295050163,-158.4,0.00050334,120]
[358590934,1745295050173,-183.35067849,0.00050356,120]
[358590935,1745295050183,-164.17,0.000505,2]
[358590936,1745295050192,-2000.0,0.000505,2]
[358590937,1745295050202,-1000.0,0.000505,2]
[358590938,1745295050212,-206.338553,0.0005051,120]
[358590939,1745295050221,-229.61,0.000506,14]
[358590940,1745295050231,-167.27,0.00050693,2]
[358590941,1745295050240,-200.0,0.000507,83]
[358590942,1745295050250,-3078.13,0.000509,2]
[358590943,1745295050260,-615.62,0.000509,2]
[358590944,1745295050270,-861.88,0.000509,2]
[358590945,1745295050279,-172.37,0.000509,2]
[358590946,1745295050289,-152.0,0.00050944,10]
[358590947,1745295050299,-500.0,0.00051,120]
[358590948,1745295050308,-1000.0,0.00051,2]
[358590949,1745295050318,-222.0,0.0005102,30]
[358590950,1745295050327,-211.0,0.0005102,30]
[358590951,1745295050337,-209.0,0.0005102,30]
[358590952,1745295050346,-276.824065,0.00051095,120]
[358590953,1745295050356,-151.0,0.00051095,120]
[358590954,1745295050365,-151.0,0.00051095,120]
[358590955,1745295050375,-165.21245,0.00051095,120]
[358590956,1745295050385,-151.0,0.00051095,120]
[358590957,1745295050395,-155.766398,0.00051095,120]
[358590958,1745295050404,-151.0,0.00051095,120]
[358590959,1745295050414,-3289.934607,0.00051095,120]
[358590960,1745295050423,-151.0,0.00051095,120]
[358590961,1745295050432,-3289.934607,0.00051095,120]
[358590962,1745295050442,-151.0,0.00051095,120]
[358590963,1745295050451,-224.993622,0.00051095,120]
[358590964,1745295050460,-224.993622,0.00051095,120]
[358590965,1745295050470,-500.0,0.00051154,120]
[358590966,1745295050479,-500.0,0.00051154,120]
[358590967,1745295050489,-1000.0,0.00051188,3]
[358590968,1745295050498,-1436.06,0.000512,2]
[358590969,1745295050508,-28393.81,0.000512,2]
[358590970,1745295050517,-151.0,0.000512,120]
[358590971,1745295050527,-151.0,0.000512,120]
[358590972,1745295050536,-3005.98,0.00051232,120]
[358590973,1745295050545,-37929.47,0.000513,60]
[358590974,1745295050555,-151.0,0.000513,120]
[358590975,1745295050564,-2039.11,0.00051415,2]
[358590976,1745295050574,-200.0,0.000517,87]
[358590977,1745295050583,-500.0,0.00051702,120]
[358590978,1745295050592,-500.0,0.00051702,120]
[358590979,1745295050602,-500.0,0.00051973,2]
[358590980,1745295050611,-829.48228119,0.00052,30]
[358590981,1745295050621,-500.0,0.00052,120]
[358590982,1745295050630,-10000.0,0.00052,30]
[358590983,1745295050640,-800.0,0.00052,120]
[358590984,1745295050650,-2120.27770437,0.000521,7]
[358590985,1745295050660,-795.0,0.00052104,2]
[358590986,1745295050669,-907.0,0.00052104,120]
[358590987,1745295050679,-180.862,0.00052104,120]
[358590988,1745295050689,-500.0,0.0005225,120]
[358590989,1745295050698,-500.0,0.0005225,120]
[358590990,1745295050707,-222.0,0.0005235,30]
[358590991,1745295050716,-211.0,0.0005235,30]
[358590992,1745295050726,-209.0,0.0005235,30]
[358590993,1745295050735,-150.0,0.00052452,120]
[358590994,1745295050745,-2401.46050493,0.000525,120]
[358590995,1745295050754,-152.0,0.00052532,11]
[358590996,1745295050763,-202.81,0.000526,60]
[358590997,1745295050772,-229.61,0.000526,60]
[358590998,1745295050782,-200.0,0.000527,91]
[358590999,1745295050791,-500.0,0.00052798,120]
[358591000,1745295050801,-500.0,0.00052798,120]
[358591001,1745295050811,-180.90111,0.000529,120]
[358591002,1745295050820,-191.99418,0.000529,120]
[358591003,1745295050830,-151.0,0.000529,120]
[358591004,1745295050839,-1436.06,0.000529,2]
[358591005,1745295050848,-28393.81,0.000529,2]
[358591006,1745295050858,-195.12,0.000529,2]
[358591007,1745295050867,-3078.13,0.000529,2]
[358591008,1745295050877,-615.62,0.000529,2]
[358591009,1745295050886,-861.88,0.000529,2]
[358591010,1745295050895,-510.0,0.00053,120]
[358591011,1745295050909,-514.26214997,0.00053,120]
[358591012,1745295050918,-10000.0,0.00053,30]
[358591013,1745295050928,-3655.4930412,0.00053,5]
[358591014,1745295050937,-1050.0,0.00053,2]
[358591015,1745295050946,-3005.98,0.0005315,120]
[358591016,1745295050957,-1326.33,0.00053179,30]
[358591017,1745295050966,-1827.0,0.000532,2]
[358591018,1745295050976,-1000.0,0.00053308,3]
[358591019,1745295050987,-159.108,0.00053331,120]
[358591020,1745295050997,-159.109,0.00053331,120]
[358591021,1745295051007,-159.109,0.00053331,120]
[358591022,1745295051016,-159.108,0.00053331,120]
[358591023,1745295051026,-500.0,0.00053346,120]
[358591024,1745295051036,-550.79084561,0.00053346,120]
[358591025,1745295051046,-171.06515992,0.00053384,52]
[358591026,1745295051055,-1436.06,0.000534,2]
[358591027,1745295051065,-28393.81,0.000534,2]
[358591028,1745295051075,-623.8031,0.000534,2]
[358591029,1745295051084,-623.8031,0.000534,2]
[358591030,1745295051093,-500.0,0.00053462,30]
[358591031,1745295051103,-252.98695196,0.000535,120]
[358591032,1745295051113,-1526.6373954,0.00053563,2]
[358591033,1745295051122,-3493.822387,0.00053563,2]
[358591034,1745295051132,-37929.47,0.000536,60]
[358591035,1745295051141,-290.05,0.000536,54]
[358591036,1745295051152,-290.05,0.000536,54]
[358591037,1745295051162,-290.05,0.000536,54]
[358591038,1745295051172,-290.05,0.000536,54]
[358591039,1745295051182,-290.05,0.000536,54]
[358591040,1745295051191,-290.05,0.000536,54]
[358591041,1745295051201,-290.05,0.000536,54]
[358591042,1745295051211,-290.05,0.000536,54]
[358591043,1745295051220,-290.05,0.000536,54]
[358591044,1745295051230,-290.05,0.000536,54]
[358591045,1745295051239,-290.05,0.000536,54]
[358591046,1745295051249,-290.05,0.000536,54]
[358591047,1745295051263,-290.05,0.000536,54]
[358591048,1745295051271,-290.05,0.000536,54]
[358591049,1745295051281,-290.05,0.000536,54]
[358591050,1745295051291,-290.05,0.000536,54]
[358591051,1745295051300,-290.05,0.000536,54]
[358591052,1745295051310,-290.05,0.000536,54]
[358591053,1745295051319,-290.05,0.000536,54]
[358591054,1745295051329,-290.05,0.000536,54]
[358591055,1745295051338,-290.05,0.000536,54]
[358591056,1745295051348,-290.05,0.000536,54]
[358591057,1745295051357,-290.05,0.000536,54]
[358591058,1745295051367,-290.05,0.000536,54]
[358591059,1745295051376,-6396.798736,0.00053642,2]
[358591060,1745295051385,-222.0,0.0005367,30]
[358591061,1745295051398,-211.0,0.0005367,30]
[358591062,1745295051407,-209.0,0.0005367,30]
[358591063,1745295051417,-151.0,0.00053679,120]
[358591064,1745295051426,-167.725356,0.00053679,120]
[358591065,1745295051436,-2039.11,0.00053679,2]
[358591066,1745295051445,-200.0,0.000537,95]
[358591067,1745295051455,-181.310253,0.000537,120]
[358591068,1745295051465,-809.83739468,0.00053708,120]
[358591069,1745295051474,-600.0,0.00053748,60]
[358591070,1745295051484,-600.0,0.00053758,60]
[358591071,1745295051493,-287.14118354,0.00053894,120]
[358591072,1745295051503,-1000.0,0.000539,120]
[358591073,1745295051512,-500.0,0.00053959,60]
[358591074,1745295051522,-500.0,0.00054,120]
[358591075,1745295051532,-2000.0,0.00054,90]
[358591076,1745295051542,-2000.0,0.00054,120]
[358591077,1745295051552,-8001.71553311,0.00054,10]
[358591078,1745295051563,-822.97326321,0.00054,3]
[358591079,1745295051573,-514.88006067,0.00054,120]
[358591080,1745295051583,-337.0,0.00054,120]
[358591081,1745295051593,-3066.0,0.00054,120]
[358591082,1745295051603,-1242.099,0.00054,120]
[358591083,1745295051612,-2791.70127894,0.00054,30]
[358591084,1745295051622,-800.0,0.00054,120]
[358591085,1745295051631,-252.805805,0.00054,120]
[358591086,1745295051641,-252.805805,0.00054,120]
[358591087,1745295051651,-1000.0,0.00054052,60]
[358591088,1745295051660,-2700.0,0.00054061,60]
[358591089,1745295051670,-1000.0,0.00054069,60]
[358591090,1745295051680,-2700.0,0.00054093,60]
[358591091,1745295051690,-150.0,0.00054118,3]
[358591092,1745295051700,-2700.0,0.00054119,60]
[358591093,1745295051710,-152.0,0.00054121,12]
[358591094,1745295051720,-700.0,0.0005417,7]
[358591095,1745295051730,-400.0,0.0005417,7]
[358591096,1745295051740,-150.0,0.00054175,120]
[358591097,1745295051750,-200.0,0.000542,97]
[358591098,1745295051760,-229.61,0.000542,60]
[358591099,1745295051770,-150.0,0.00054242,120]
[358591100,1745295051780,-200.0,0.00054247,14]
[358591101,1745295051789,-1000.0,0.00054277,60]
[358591102,1745295051799,-67310.5990532,0.00054453,2]
[358591103,1745295051809,-1000.0,0.00054485,3]
[358591104,1745295051819,-2110.0,0.0005449,30]
[358591105,1745295051828,-102865.20068749,0.000545,120]
[358591106,1745295051838,-203.941593,0.000545,120]
[358591107,1745295051847,-151.0,0.000545,120]
[358591108,1745295051857,-534.94732,0.000545,120]
[358591109,1745295051866,-151.0,0.000545,120]
[358591110,1745295051876,-534.94732,0.000545,120]
[358591111,1745295051886,-181.14377,0.000545,120]
[358591112,1745295051895,-151.0,0.000545,120]
[358591113,1745295051906,-176.954828,0.000545,120]
[358591114,1745295051918,-176.954828,0.000545,120]
[358591115,1745295051928,-151.0,0.000545,120]
[358591116,1745295051938,-151.0,0.000545,120]
[358591117,1745295051948,-611.122299,0.000545,120]
[358591118,1745295051958,-611.122299,0.000545,120]
[358591119,1745295051968,-151.0,0.000545,120]
[358591120,1745295051977,-182.850072,0.000545,120]
[358591121,1745295051987,-163.34006,0.000545,120]
[358591122,1745295051997,-151.0,0.000545,120]
[358591123,1745295052007,-2700.0,0.0005458,60]
[358591124,1745295052017,-1041.05939757,0.000546,120]
[358591125,1745295052026,-646.6774063,0.00054644,2]
[358591126,1745295052036,-1000.0,0.00054671,60]
[358591127,1745295052046,-500.0,0.00054677,60]
[358591128,1745295052055,-200.0,0.000547,99]
[358591129,1745295052065,-961.9585,0.00054715,3]
[358591130,1745295052075,-178.0685,0.00054715,3]
[358591131,1745295052085,-155.395463,0.00054756,120]
[358591132,1745295052095,-151.0,0.00054756,120]
[358591133,1745295052105,-151.0,0.00054756,120]
[358591134,1745295052275,-159.859354,0.00054756,120]
[358591135,1745295052285,-254.569227,0.00054756,120]
[358591136,1745295052294,-350.0,0.00054783,120]
[358591137,1745295052303,-89923.15,0.00054794,7]
[358591138,1745295052312,-187.884564,0.00054794,120]
[358591139,1745295052321,-298.945392,0.00054794,120]
[358591140,1745295052331,-1123.355858,0.00054794,120]
[358591141,1745295052340,-160.916526,0.00054794,120]
[358591142,1745295052350,-151.0,0.00054794,120]
[358591143,1745295052359,-180.90111,0.00054794,120]
[358591144,1745295052368,-501.91025796,0.00054794,5]
[358591145,1745295052377,-501.69013088,0.00054794,3]
[358591146,1745295052387,-500.0,0.00054794,120]
[358591147,1745295052396,-151.0,0.00054794,120]
[358591148,1745295052406,-623.8031,0.00054794,2]
[358591149,1745295052415,-623.8031,0.00054794,2]
[358591150,1745295052424,-151.0,0.00054794,120]
[358591151,1745295052434,-237.85410938,0.00054794,120]
[358591152,1745295052443,-500.0,0.00054794,120]
[358591153,1745295052452,-508.60216855,0.00054794,120]
[358591154,1745295052461,-151.0,0.00054794,120]
[358591155,1745295052471,-500.0,0.00054794,120]
[358591156,1745295052480,-500.0,0.00054794,120]
[358591157,1745295052489,-500.0,0.00054794,120]
[358591158,1745295052499,-500.0,0.00054794,120]
[358591159,1745295052508,-239.857043,0.00054794,120]
[358591160,1745295052517,-500.0,0.00054794,120]
[358591161,1745295052528,-500.0,0.00054794,120]
[358591162,1745295052539,-500.0,0.00054794,120]
[358591163,1745295052549,-507.23434163,0.00054794,120]
[358591164,1745295052559,-510.78209049,0.00054794,120]
[358591165,1745295052569,-500.0,0.00054794,120]
[358591166,1745295052578,-500.0,0.00054794,120]
[358591167,1745295052588,-500.0,0.00054794,60]
[358591168,1745295052597,-500.0,0.00054794,120]
[358591169,1745295052606,-600.0,0.00054794,120]
[358591170,1745295052615,-500.0,0.00054794,120]
[358591171,1745295052626,-500.0,0.00054794,120]
[358591172,1745295052635,-500.0,0.00054794,120]
[358591173,1745295052645,-500.0,0.00054794,7]
[358591174,1745295052655,-500.0,0.00054794,120]
[358591175,1745295052664,-500.0,0.00054794,120]
[358591176,1745295052674,-189.56166354,0.00054794,120]
[358591177,1745295052683,-500.0,0.00054794,120]
[358591178,1745295052692,-500.0,0.00054794,120]
[358591179,1745295052702,-1000.0,0.00054794,120]
[358591180,1745295052711,-500.0,0.00054794,120]
[358591181,1745295052720,-500.0,0.00054794,120]
[358591182,1745295052728,-500.0,0.00054794,120]
[358591183,1745295052738,-495.33543243,0.00054794,120]
[358591184,1745295052747,-186.63801203,0.00054794,120]
[358591185,1745295052756,-505.73292248,0.00054794,120]
[358591186,1745295052765,-500.0,0.00054794,120]
[358591187,1745295052775,-535.73327808,0.00054794,120]
[358591188,1745295052783,-518.21408406,0.00054794,120]
[358591189,1745295052792,-503.64856756,0.00054794,120]
[358591190,1745295052801,-641.90792195,0.00054794,120]
[358591191,1745295052810,-500.0,0.00054794,120]
[358591192,1745295052819,-512.59614448,0.00054794,120]
[358591193,1745295052829,-500.0,0.00054794,120]
[358591194,1745295052838,-500.0,0.00054794,120]
[358591195,1745295052847,-500.0,0.00054794,120]
[358591196,1745295052856,-500.0,0.00054794,120]
[358591197,1745295052865,-557.46064337,0.00054794,120]
[358591198,1745295052874,-500.0,0.00054794,120]
[358591199,1745295052883,-367.726189,0.00054794,120]
[358591200,1745295052893,-500.0,0.00054794,120]
[358591201,1745295052902,-500.0,0.00054794,120]
[358591202,1745295052916,-500.0,0.00054794,120]
[358591203,1745295052926,-500.0,0.00054794,120]
[358591204,1745295052935,-500.0,0.00054794,120]
[358591205,1745295052944,-167.834175,0.00054794,120]
[358591206,1745295052954,-500.0,0.00054794,120]
[358591207,1745295052963,-500.0,0.00054794,120]
[358591208,1745295052973,-157.31424063,0.00054794,120]
[358591209,1745295052982,-523.89322496,0.00054794,120]
[358591210,1745295052992,-500.0,0.00054794,120]
[358591211,1745295053003,-500.0,0.00054794,120]
[358591212,1745295053012,-500.0,0.00054794,120]
[358591213,1745295053021,-304.15290029,0.00054794,120]
[358591214,1745295053032,-505.59789125,0.00054794,120]
[358591215,1745295053041,-500.0,0.00054794,120]
[358591216,1745295053051,-637.34382878,0.00054794,120]
[358591217,1745295053060,-516.27467672,0.00054794,120]
[358591218,1745295053070,-500.0,0.00054794,120]
[358591219,1745295053080,-500.0,0.00054794,120]
[358591220,1745295053090,-500.0,0.00054794,120]
[358591221,1745295053099,-284.035167,0.00054794,120]
[358591222,1745295053109,-500.0,0.00054794,120]
[358591223,1745295053118,-968.73248741,0.00054794,120]
[358591224,1745295053127,-500.0,0.00054794,120]
[358591225,1745295053137,-500.0,0.00054794,120]
[358591226,1745295053146,-574.32,0.00054794,120]
[358591227,1745295053156,-500.0,0.00054794,120]
[358591228,1745295053165,-500.0,0.00054794,120]
[358591229,1745295053175,-500.0,0.00054794,120]